[Event "Swiss National League-A 2024"]
[Site "Luzern"]
[Date "2024.10.13"]
[Round "9.11"]
[White "Wildi, Marcel"]
[Black "Boffa, Mauro"]
[Result "1-0"]
[ECO "D00"]
[WhiteElo "2213"]
[BlackElo "2206"]
[Annotator "RC"]
[PlyCount "133"]
[EventDate "2023.10.03"]
[EventType "team-tourn"]
[EventCountry "SUI"]
[SourceTitle "playchess.com"]
[Source "ChessBase"]
[SourceQuality "1"]
[TimeControl "40/8400+30:20/3000+30:900+30"]

1. d4 {[%emt 0:40:08]} Nf6 {[%emt 0:40:09]} 2. Nc3 {[%emt 0:00:04]} d5 {[%emt 0:00:09]} 3. Bf4 {[%emt 0:00:05]} e6 {[%emt 0:00:08]} 4. Nb5 {[%emt 0:00:14]} Na6 {[%emt 0:00:09]} 5. e3 {[%emt 0:00:09]} Be7 {[%emt 0:00:52]} 6. h3 {[%emt 0:06:41]} O-O {[%emt 0:06:28]} 7. Nf3 {[%emt 0:01:54]} c6 {[%emt 0:11:54]} 8. Nc3 {[%emt 0:00:36]} Qa5 {[%emt 0:01:08]} 9. Nd2 {[%emt 0:13:13]} Bd7 {[%emt 0:32:40]} 10. a3 {[%emt 0:13:59]} Rac8 {[%emt 0:12:24]} 11. b4 {[%emt 0:03:57]} Qd8 {[%emt 0:00:38]} 12. Bxa6 {[%emt 0:00:19]} bxa6 {[%emt 0:00:01]} 13. Nb3 {[%emt 0:00:16]} Ne8 {[%emt 0:00:49]} 14. Qe2 {[%emt 0:06:36]} Nd6 {[%emt 0:08:07]} 15. Qxa6 {[%emt 0:19:07]} Nc4 {[%emt 0:02:18]} 16. Nd2 {[%emt 0:08:54]} e5 {[%emt 0:05:27]} 17. Bxe5 {[%emt 0:02:37]} Nxe5 {[%emt 0:05:11]} 18. dxe5 {[%emt 0:00:03]} f6 {[%emt 0:03:24]} 19. e6 {[%emt 0:09:42]} Bxe6 {[%emt 0:00:19]} 20. Nf3 {[%emt 0:00:18]} Qd7 {[%emt 0:06:40]} 21. Nd4 {[%emt 0:04:27]} Bf7 {[%emt 0:00:08]} 22. O-O {[%emt 0:00:58]} f5 {[%emt 0:01:24]} 23. Rab1 {[%emt 0:04:10]} Bf6 {[%emt 0:01:26]} 24. Na4 {[%emt 0:00:25]} f4 {[%emt 0:00:43]} 25. Nc5 {[%emt 0:00:55]} Qd6 {[%emt 0:03:31]} 26. Nb5 {[%emt 0:05:31]} Qe7 {[%emt 0:03:32]} 27. Nxa7 {[%emt 0:03:14]} Ra8 {[%emt 0:00:47]} 28. Nxc6 {[%emt 0:00:05]} Qd6 {[%emt 0:01:54]} 29. Qb7 {[%emt 0:02:30]} Rxa3 {[%emt 0:00:16]} 30. Nd7 {[%emt 0:01:07]} Re8 {[%emt 0:00:13]} 31. exf4 {[%emt 0:00:36]} Rc3 {[%emt 0:00:49]} 32. Nxf6+ {[%emt 0:00:39]} Qxf6 {[%emt 0:00:08]} 33. Ne5 {[%emt 0:01:30]} Be6 {[%emt 0:00:33]} 34. Qb5 {[%emt 0:00:28]} Rec8 {[%emt 0:00:31]} 35. Nd3 {[%emt 0:00:26]} Rxc2 {[%emt 0:00:46]} 36. Rbc1 {[%emt 0:00:10]} R2c4 {[%emt 0:00:46]} 37. Rcd1 {[%emt 0:01:24]} Rc2 {[%emt 0:01:16]} 38. Rfe1 {[%emt 0:00:10]} h6 {[%emt 0:00:19]} 39. Re3 {[%emt 0:01:32]} d4 {[%emt 0:00:34]} 40. Rg3 {[%emt 0:00:41]} Bc4 {[%emt 0:01:17]} 41. Qd7 {[%emt 0:03:51]} Be6 {[%emt 0:03:08]} 42. Qd6 {[%emt 0:04:03]} Rd8 {[%emt 0:15:32]} 43. Qe5 {[%emt 0:00:47]} Kf7 {[%emt 0:02:13]} 44. Qa5 {[%emt 0:15:11]} Rd5 {[%emt 0:05:08]} 45. Qa7+ {[%emt 0:01:35]} Kg8 {[%emt 0:00:24]} 46. Ne5 {[%emt 0:10:52]} Rxf2 {[%emt 0:08:34]} 47. Qxg7+ {[%emt 0:00:43]} Qxg7 {[%emt 0:00:09]} 48. Rxg7+ {[%emt 0:00:03]} Kxg7 {[%emt 0:00:06]} 49. Kxf2 {[%emt 0:00:03]} Bf5 {[%emt 0:01:08]} 50. Nc6 {[%emt 0:02:29]} d3 {[%emt 0:02:25]} 51. Ne7 {[%emt 0:00:05]} Rb5 {[%emt 0:00:24]} 52. Nxf5+ {[%emt 0:00:32]} Rxf5 {[%emt 0:00:02]} 53. Ke3 {[%emt 0:00:33]} Rb5 {[%emt 0:00:37]} 54. Rb1 {[%emt 0:01:49]} Rd5 {[%emt 0:00:11]} 55. Rb2 {[%emt 0:00:43]} h5 {[%emt 0:01:17]} 56. g3 {[%emt 0:06:22]} Kf6 {[%emt 0:02:01]} 57. g4 {[%emt 0:04:06]} h4 {[%emt 0:02:05]} 58. Kd2 {[%emt 0:00:16]} Rd4 {[%emt 0:00:35]} 59. b5 {[%emt 0:00:13]} Rxf4 {[%emt 0:02:07]} 60. b6 {[%emt 0:00:05]} Rf2+ {[%emt 0:01:08]} 61. Kc3 {[%emt 0:15:11]} d2 {[%emt 0:16:15]} 62. Rxd2 {[%emt 0:00:08]} Rf3+ {[%emt 0:00:50]} 63. Kc4 {[%emt 0:02:34]} Ke6 {[%emt 0:03:47]} 64. Rb2 {[%emt 0:01:10]} Rf8 {[%emt 0:01:31]} 65. b7 {[%emt 0:00:07]} Rb8 {[%emt 0:00:07]} 66. Kc5 {[%emt 0:00:03]} Ke5 {[%emt 0:00:25]} 67. Kc6 {[%emt 0:00:17]} 1-0

[Event "Swiss National League-A 2024"]
[Site "Luzern"]
[Date "2024.10.13"]
[Round "9.12"]
[White "Loeffler, Markus"]
[Black "Knoedler, Dieter"]
[Result "0-1"]
[ECO "C18"]
[WhiteElo "2256"]
[BlackElo "2265"]
[Annotator "RC"]
[PlyCount "70"]
[EventDate "2023.10.03"]
[EventType "team-tourn"]
[EventCountry "SUI"]
[SourceTitle "playchess.com"]
[Source "ChessBase"]
[SourceQuality "1"]
[TimeControl "40/8400+30:20/3000+30:900+30"]

1. e4 {[%emt 0:40:04]} e6 {[%emt 0:40:29]} 2. d4 {[%emt 0:00:07]} d5 {[%emt 0:00:09]} 3. Nc3 {[%emt 0:00:08]} Bb4 {[%emt 0:00:06]} 4. e5 {[%emt 0:00:04]} c5 {[%emt 0:00:05]} 5. a3 {[%emt 0:00:03]} Bxc3+ {[%emt 0:00:05]} 6. bxc3 {[%emt 0:00:03]} Ne7 {[%emt 0:00:07]} 7. h4 {[%emt 0:00:08]} Qc7 {[%emt 0:01:22]} 8. h5 {[%emt 0:01:13]} h6 {[%emt 0:08:05]} 9. Rb1 {[%emt 0:06:24]} b6 {[%emt 0:02:23]} 10. Qg4 {[%emt 0:22:29]} Ba6 {[%emt 0:09:19]} 11. Qxg7 {[%emt 0:11:55]} Rg8 {[%emt 0:00:54]} 12. Qxh6 {[%emt 0:00:16]} cxd4 {[%emt 0:00:57]} 13. Bxa6 {[%emt 0:09:10]} Nxa6 {[%emt 0:00:33]} 14. Ne2 {[%emt 0:18:17]} dxc3 {[%emt 0:01:43]} 15. Qf4 {[%emt 0:03:45]} Nc5 {[%emt 0:01:44]} 16. Nxc3 {[%emt 0:05:39]} Rxg2 {[%emt 0:18:50]} 17. Kf1 {[%emt 0:01:38]} Rg7 {[%emt 0:02:22]} 18. Nb5 {[%emt 0:01:30]} Qc6 {[%emt 0:00:52]} 19. Nd4 {[%emt 0:04:14]} Qa4 {[%emt 0:01:25]} 20. Rb4 {[%emt 0:01:26]} Qa6+ {[%emt 0:00:44]} 21. Ke1 {[%emt 0:04:54]} Kd7 {[%emt 0:02:39]} 22. h6 {[%emt 0:01:00]} Rh7 {[%emt 0:02:37]} 23. Rg1 {[%emt 0:01:07]} Ng6 {[%emt 0:03:55]} 24. Qe3 {[%emt 0:04:22]} Rah8 {[%emt 0:01:25]} 25. Nb5 {[%emt 0:01:37]} Rxh6 {[%emt 0:02:20]} 26. Qf3 {[%emt 0:00:24]} R6h7 {[%emt 0:07:24]} 27. Be3 {[%emt 0:03:06]} Qb7 {[%emt 0:09:17]} 28. Bxc5 {[%emt 0:04:48]} bxc5 {[%emt 0:07:35]} 29. Nd6 {[%emt 0:00:07]} Qa6 {[%emt 0:00:13]} 30. Rb7+ {[%emt 0:01:36]} Kc6 {[%emt 0:00:25]} 31. Qf6 {[%emt 0:02:31]} Qa5+ {[%emt 0:05:11]} 32. Kf1 {[%emt 0:00:03]} Rh1 {[%emt 0:02:20]} 33. Rb1 {[%emt 0:01:12]} Qd2 {[%emt 0:02:15]} 34. Nxf7 {[%emt 0:00:27]} Nf4 {[%emt 0:00:45]} 35. Nd8+ {[%emt 0:00:58]} Rxd8 {[%emt 0:00:46]} 0-1

[Event "Swiss National League-A 2024"]
[Site "Luzern"]
[Date "2024.10.13"]
[Round "9.13"]
[White "Marentini, Marcel"]
[Black "Schweizer, Simon"]
[Result "1/2-1/2"]
[ECO "A13"]
[WhiteElo "2143"]
[BlackElo "2124"]
[Annotator "RC"]
[PlyCount "99"]
[EventDate "2023.10.03"]
[EventType "team-tourn"]
[EventCountry "SUI"]
[SourceTitle "playchess.com"]
[Source "ChessBase"]
[SourceQuality "1"]
[TimeControl "40/8400+30:20/3000+30:900+30"]

1. Nf3 {[%emt 0:40:02]} Nf6 {[%emt 0:40:21]} 2. c4 {[%emt 0:00:10]} e6 {[%emt 0:00:25]} 3. g3 {[%emt 0:00:17]} a6 {[%emt 0:00:39]} 4. Bg2 {[%emt 0:01:30]} d5 {[%emt 0:00:14]} 5. b3 {[%emt 0:03:54]} b5 {[%emt 0:01:54]} 6. O-O {[%emt 0:03:30]} Bb7 {[%emt 0:01:34]} 7. Bb2 {[%emt 0:03:20]} Nbd7 {[%emt 0:00:19]} 8. Na3 {[%emt 0:06:35]} b4 {[%emt 0:00:57]} 9. Nc2 {[%emt 0:00:09]} dxc4 {[%emt 0:00:51]} 10. bxc4 {[%emt 0:00:07]} c5 {[%emt 0:00:31]} 11. d4 {[%emt 0:00:47]} Qc7 {[%emt 0:00:31]} 12. Ne3 {[%emt 0:02:15]} cxd4 {[%emt 0:00:18]} 13. Nxd4 {[%emt 0:01:58]} Bxg2 {[%emt 0:00:21]} 14. Kxg2 {[%emt 0:00:04]} Bc5 {[%emt 0:00:50]} 15. a3 {[%emt 0:00:31]} O-O {[%emt 0:01:18]} 16. axb4 {[%emt 0:00:24]} Bxb4 {[%emt 0:00:24]} 17. Ba3 {[%emt 0:02:08]} Bxa3 {[%emt 0:02:56]} 18. Rxa3 {[%emt 0:00:23]} Ne5 {[%emt 0:00:05]} 19. Ra4 {[%emt 0:08:37]} Rfd8 {[%emt 0:00:21]} 20. Qa1 {[%emt 0:00:20]} Rxd4 {[%emt 0:06:06]} 21. Qxd4 {[%emt 0:00:10]} Qc6+ {[%emt 0:00:11]} 22. Kg1 {[%emt 0:00:37]} Nf3+ {[%emt 0:00:43]} 23. exf3 {[%emt 0:00:33]} Qxa4 {[%emt 0:00:08]} 24. Ra1 {[%emt 0:16:14]} Qc6 {[%emt 0:00:08]} 25. Kg2 {[%emt 0:00:06]} Rc8 {[%emt 0:00:50]} 26. Qa7 {[%emt 0:04:26]} Ra8 {[%emt 0:00:26]} 27. Qd4 {[%emt 0:00:09]} h5 {[%emt 0:00:36]} 28. Ra5 {[%emt 0:02:43]} Rc8 {[%emt 0:03:12]} 29. Rg5 {[%emt 0:06:14]} Kf8 {[%emt 0:00:03]} 30. h4 {[%emt 0:00:28]} Qc7 {[%emt 0:01:35]} 31. Qa1 {[%emt 0:09:21]} Qd6 {[%emt 0:03:54]} 32. g4 {[%emt 0:03:58]} hxg4 {[%emt 0:01:27]} 33. Nxg4 {[%emt 0:00:10]} Ne8 {[%emt 0:01:33]} 34. Ra5 {[%emt 0:15:07]} Rxc4 {[%emt 0:11:56]} 35. Rxa6 {[%emt 0:00:10]} Qd4 {[%emt 0:06:10]} 36. Qa3+ {[%emt 0:09:02]} Qc5 {[%emt 0:00:15]} 37. Qd3 {[%emt 0:02:13]} Rd4 {[%emt 0:24:36]} 38. Qh7 {[%emt 0:08:13]} Ke7 {[%emt 0:02:08]} 39. Qb1 {[%emt 0:01:17]} Nc7 {[%emt 0:02:00]} 40. Qb7 {[%emt 0:01:34]} Rd7 {[%emt 0:00:55]} 41. Rc6 {[%emt 0:50:40]} Qa5 {[%emt 0:51:05]} 42. Qb2 {[%emt 0:00:00]} f6 {[%emt 0:00:00]} 43. Ne3 {[%emt 0:00:00]} Nd5 {[%emt 0:00:00]} 44. Nxd5+ {[%emt 0:00:00]} Qxd5 {[%emt 0:00:00]} 45. Qb4+ {[%emt 0:00:00]} Kf7 {[%emt 0:00:00]} 46. Rc8 {[%emt 0:00:00]} Rd8 {[%emt 0:00:00]} 47. Rc7+ {[%emt 0:00:00]} Rd7 {[%emt 0:00:00]} 48. Rc8 {[%emt 0:00:00]} Rd8 {[%emt 0:00:00]} 49. Rc7+ {[%emt 0:00:00]} Rd7 {[%emt 0:00:00]} 50. Rc8 {[%emt 0:00:00]} 1/2-1/2

[Event "Swiss National League-A 2024"]
[Site "Luzern"]
[Date "2024.10.13"]
[Round "9.14"]
[White "Barth, Can-Elian"]
[Black "Seitz, Patrick"]
[Result "0-1"]
[ECO "A40"]
[WhiteElo "2065"]
[BlackElo "2151"]
[Annotator "RC"]
[PlyCount "46"]
[EventDate "2023.10.03"]
[EventType "team-tourn"]
[EventCountry "SUI"]
[SourceTitle "playchess.com"]
[Source "ChessBase"]
[SourceQuality "1"]
[TimeControl "40/8400+30:20/3000+30:900+30"]

1. d4 {[%emt 0:40:03]} e6 {[%emt 0:40:06]} 2. c4 {[%emt 0:00:09]} Bb4+ {[%emt 0:00:05]} 3. Nc3 {[%emt 0:03:11]} b6 {[%emt 0:00:12]} 4. e3 {[%emt 0:01:29]} Bb7 {[%emt 0:04:35]} 5. Nge2 {[%emt 0:05:52]} f5 {[%emt 0:04:30]} 6. a3 {[%emt 0:08:06]} Bd6 {[%emt 0:00:26]} 7. Bd2 {[%emt 0:06:48]} Nf6 {[%emt 0:03:17]} 8. Nb5 {[%emt 0:16:12]} O-O {[%emt 0:16:47]} 9. Nxd6 {[%emt 0:02:08]} cxd6 {[%emt 0:00:06]} 10. Ng3 {[%emt 0:13:00]} Na6 {[%emt 0:15:16]} 11. f3 {[%emt 0:08:01]} h5 {[%emt 0:13:05]} 12. Bd3 {[%emt 0:07:59]} h4 {[%emt 0:00:44]} 13. Ne2 {[%emt 0:00:05]} h3 {[%emt 0:00:05]} 14. Nf4 {[%emt 0:01:41]} hxg2 {[%emt 0:06:21]} 15. Rg1 {[%emt 0:01:43]} Ng4 {[%emt 0:10:03]} 16. fxg4 {[%emt 0:16:27]} Qh4+ {[%emt 0:00:18]} 17. Ke2 {[%emt 0:00:05]} fxg4 {[%emt 0:01:01]} 18. d5 {[%emt 0:04:26]} exd5 {[%emt 0:07:36]} 19. Be1 {[%emt 0:05:19]} Qf6 {[%emt 0:00:52]} 20. Qc2 {[%emt 0:00:24]} Qh6 {[%emt 0:04:47]} 21. Nxd5 {[%emt 0:03:20]} Rae8 {[%emt 0:01:32]} 22. Bf2 {[%emt 0:04:24]} Bxd5 {[%emt 0:00:12]} 23. Bh7+ {[%emt 0:00:27]} Kh8 {[%emt 0:00:09]} 0-1

[Event "Swiss National League-A 2024"]
[Site "Luzern"]
[Date "2024.10.13"]
[Round "9.15"]
[White "Coellen, Eike"]
[Black "Schweizer, Samuel"]
[Result "1-0"]
[ECO "B43"]
[WhiteElo "2020"]
[BlackElo "2006"]
[Annotator "RC"]
[PlyCount "87"]
[EventDate "2023.10.03"]
[EventType "team-tourn"]
[EventCountry "SUI"]
[SourceTitle "playchess.com"]
[Source "ChessBase"]
[SourceQuality "1"]
[TimeControl "40/8400+30:20/3000+30:900+30"]

1. e4 {[%emt 0:40:04]} c5 {[%emt 0:41:01]} 2. Nf3 {[%emt 0:00:05]} e6 {[%emt 0:00:26]} 3. d4 {[%emt 0:00:06]} cxd4 {[%emt 0:00:10]} 4. Nxd4 {[%emt 0:00:07]} a6 {[%emt 0:00:25]} 5. Nc3 {[%emt 0:00:38]} Qc7 {[%emt 0:00:43]} 6. Bd3 {[%emt 0:00:12]} Nf6 {[%emt 0:01:34]} 7. Qe2 {[%emt 0:02:05]} d6 {[%emt 0:02:10]} 8. Be3 {[%emt 0:04:03]} Be7 {[%emt 0:04:05]} 9. O-O-O {[%emt 0:03:19]} Nc6 {[%emt 0:00:25]} 10. g4 {[%emt 0:04:34]} Nxd4 {[%emt 0:00:32]} 11. Bxd4 {[%emt 0:00:08]} e5 {[%emt 0:00:53]} 12. Be3 {[%emt 0:00:23]} Bxg4 {[%emt 0:00:10]} 13. f3 {[%emt 0:00:04]} Be6 {[%emt 0:01:10]} 14. Rhg1 {[%emt 0:00:13]} Rg8 {[%emt 0:04:21]} 15. f4 {[%emt 0:05:06]} Rc8 {[%emt 0:06:25]} 16. fxe5 {[%emt 0:16:36]} dxe5 {[%emt 0:00:47]} 17. Bg5 {[%emt 0:00:38]} Qa5 {[%emt 0:08:40]} 18. Bxf6 {[%emt 0:06:05]} Bxf6 {[%emt 0:00:21]} 19. Nd5 {[%emt 0:00:41]} Bxd5 {[%emt 0:01:47]} 20. exd5 {[%emt 0:00:05]} Qxa2 {[%emt 0:01:23]} 21. c3 {[%emt 0:12:29]} h6 {[%emt 0:01:19]} 22. Qe4 {[%emt 0:04:52]} Qb3 {[%emt 0:09:21]} 23. d6 {[%emt 0:09:11]} Rc5 {[%emt 0:03:29]} 24. Bc2 {[%emt 0:03:14]} Qb6 {[%emt 0:01:45]} 25. Ba4+ {[%emt 0:12:13]} Kd8 {[%emt 0:00:53]} 26. Qf5 {[%emt 0:02:34]} Rc6 {[%emt 0:02:22]} 27. Bxc6 {[%emt 0:01:28]} Qxc6 {[%emt 0:00:19]} 28. Rxg7 {[%emt 0:06:45]} Bg5+ {[%emt 0:02:55]} 29. Rxg5 {[%emt 0:00:18]} Rxg5 {[%emt 0:01:37]} 30. Qf6+ {[%emt 0:01:14]} Kc8 {[%emt 0:01:06]} 31. d7+ {[%emt 0:00:37]} Qxd7 {[%emt 0:00:32]} 32. Rxd7 {[%emt 0:00:08]} Kxd7 {[%emt 0:00:03]} 33. Qxf7+ {[%emt 0:00:07]} Kc6 {[%emt 0:00:17]} 34. Qe6+ {[%emt 0:00:41]} Kc7 {[%emt 0:00:30]} 35. Qxh6 {[%emt 0:00:11]} Rg2 {[%emt 0:00:47]} 36. h4 {[%emt 0:00:14]} a5 {[%emt 0:00:21]} 37. Qe6 {[%emt 0:00:29]} Rg1+ {[%emt 0:00:50]} 38. Kc2 {[%emt 0:00:16]} Rg2+ {[%emt 0:00:27]} 39. Kb3 {[%emt 0:00:47]} a4+ {[%emt 0:00:36]} 40. Ka3 {[%emt 0:00:24]} Rd2 {[%emt 0:00:30]} 41. Qxe5+ {[%emt 0:50:17]} Rd6 {[%emt 0:50:10]} 42. h5 {[%emt 0:00:19]} b5 {[%emt 0:00:10]} 43. Qxd6+ {[%emt 0:00:07]} Kxd6 {[%emt 0:00:07]} 44. h6 {[%emt 0:00:03]} 1-0

[Event "Swiss National League-A 2024"]
[Site "Luzern"]
[Date "2024.10.13"]
[Round "9.16"]
[White "Leutwyler, Mathias"]
[Black "Schmid, Michael"]
[Result "0-1"]
[ECO "A48"]
[WhiteElo "2036"]
[BlackElo "2149"]
[Annotator "RC"]
[PlyCount "106"]
[EventDate "2023.10.03"]
[EventType "team-tourn"]
[EventCountry "SUI"]
[SourceTitle "playchess.com"]
[Source "ChessBase"]
[SourceQuality "1"]
[TimeControl "40/8400+30:20/3000+30:900+30"]

1. d4 {[%emt 0:40:04]} Nf6 {[%emt 0:40:13]} 2. Nf3 {[%emt 0:00:07]} g6 {[%emt 0:00:08]} 3. Bf4 {[%emt 0:00:26]} d6 {[%emt 0:00:43]} 4. e3 {[%emt 0:00:23]} Bg7 {[%emt 0:00:07]} 5. h4 {[%emt 0:00:07]} Nbd7 {[%emt 0:01:51]} 6. c3 {[%emt 0:00:45]} O-O {[%emt 0:02:21]} 7. h5 {[%emt 0:00:46]} Nxh5 {[%emt 0:00:34]} 8. Rxh5 {[%emt 0:00:11]} gxh5 {[%emt 0:00:14]} 9. Bg3 {[%emt 0:00:34]} Re8 {[%emt 0:11:28]} 10. Nbd2 {[%emt 0:00:32]} Nf8 {[%emt 0:08:16]} 11. Qc2 {[%emt 0:00:26]} c6 {[%emt 0:07:44]} 12. O-O-O {[%emt 0:00:25]} Qa5 {[%emt 0:02:40]} 13. Kb1 {[%emt 0:03:43]} Bf5 {[%emt 0:03:38]} 14. e4 {[%emt 0:00:19]} Bg6 {[%emt 0:00:25]} 15. Nc4 {[%emt 0:13:17]} Qd8 {[%emt 0:06:06]} 16. Bd3 {[%emt 0:00:11]} b5 {[%emt 0:03:54]} 17. Ne3 {[%emt 0:00:43]} Qb6 {[%emt 0:04:53]} 18. Nh4 {[%emt 0:05:46]} e5 {[%emt 0:06:28]} 19. d5 {[%emt 0:05:22]} c5 {[%emt 0:01:01]} 20. Nhf5 {[%emt 0:02:41]} c4 {[%emt 0:11:47]} 21. Be2 {[%emt 0:02:41]} a5 {[%emt 0:01:18]} 22. Rh1 {[%emt 0:01:17]} Ra7 {[%emt 0:09:51]} 23. Bxh5 {[%emt 0:00:57]} Rc8 {[%emt 0:02:32]} 24. Bg4 {[%emt 0:02:37]} Rb8 {[%emt 0:02:48]} 25. Nxg7 {[%emt 0:00:49]} Kxg7 {[%emt 0:00:11]} 26. Nf5+ {[%emt 0:10:32]} Bxf5 {[%emt 0:08:19]} 27. exf5 {[%emt 0:04:29]} f6 {[%emt 0:02:21]} 28. Qd2 {[%emt 0:01:16]} b4 {[%emt 0:02:25]} 29. cxb4 {[%emt 0:10:43]} Qxb4 {[%emt 0:01:37]} 30. Qxb4 {[%emt 0:00:07]} axb4 {[%emt 0:01:06]} 31. Be2 {[%emt 0:00:51]} c3 {[%emt 0:01:25]} 32. Rh4 {[%emt 0:00:25]} Rc7 {[%emt 0:01:58]} 33. Rc4 {[%emt 0:01:28]} Rxc4 {[%emt 0:00:34]} 34. Bxc4 {[%emt 0:00:06]} cxb2 {[%emt 0:01:52]} 35. Kxb2 {[%emt 0:00:07]} Nd7 {[%emt 0:00:20]} 36. f3 {[%emt 0:00:13]} Kf7 {[%emt 0:01:04]} 37. Be1 {[%emt 0:00:31]} Ke7 {[%emt 0:00:14]} 38. g4 {[%emt 0:00:26]} Nc5 {[%emt 0:00:55]} 39. Bd2 {[%emt 0:00:20]} Kd7 {[%emt 0:00:35]} 40. f4 {[%emt 0:02:24]} exf4 {[%emt 0:02:28]} 41. Bxf4 {[%emt 0:50:10]} Rg8 {[%emt 0:51:54]} 42. Be2 {[%emt 0:00:15]} Kc7 {[%emt 0:00:00]} 43. Bd2 {[%emt 0:00:00]} Re8 {[%emt 0:00:00]} 44. Bf3 {[%emt 0:00:00]} Nd3+ {[%emt 0:00:00]} 45. Kb3 {[%emt 0:00:00]} Ne5 {[%emt 0:00:00]} 46. Bd1 {[%emt 0:00:00]} Rg8 {[%emt 0:00:00]} 47. Kxb4 {[%emt 0:00:00]} Nxg4 {[%emt 0:00:00]} 48. a4 {[%emt 0:00:00]} h5 {[%emt 0:00:00]} 49. Be1 {[%emt 0:00:00]} Ne3 {[%emt 0:00:00]} 50. Bb3 {[%emt 0:00:00]} Ng2 {[%emt 0:00:00]} 51. Bf2 {[%emt 0:00:00]} h4 {[%emt 0:00:00]} 52. a5 {[%emt 0:00:00]} h3 {[%emt 0:00:00]} 53. Bg1 {[%emt 0:00:00]} Nh4 {[%emt 0:00:00]} 0-1

[Event "Swiss National League-A 2024"]
[Site "Luzern"]
[Date "2024.10.13"]
[Round "9.17"]
[White "Santos Ruiz, Miguel"]
[Black "Kurmann, Oliver"]
[Result "1/2-1/2"]
[ECO "B45"]
[WhiteElo "2598"]
[BlackElo "2413"]
[Annotator "TA"]
[PlyCount "42"]
[EventDate "2023.10.03"]
[EventType "team-tourn"]
[EventCountry "SUI"]
[SourceTitle "playchess.com"]
[Source "ChessBase"]
[SourceQuality "1"]
[TimeControl "40/8400+30:20/3000+30:900+30"]

{[%evp 12,42,16,0,0,-12,22,0,0,0,3,0,0,0,0,0,0,0,7,4,0,0,0,0,0,0,4,7,1,0,0,0,0]} 1. e4 {[%emt 0:40:03]} c5 {[%emt 0:40:08]} 2. Nf3 {[%emt 0:00:05]} e6 {[%emt 0:00:10]} 3. d4 {[%emt 0:00:10]} cxd4 {[%emt 0:00:07]} 4. Nxd4 {[%emt 0:00:03]} Nf6 {[%emt 0:00:13]} 5. Nc3 {[%emt 0:00:02]} Nc6 {[%emt 0:00:10]} 6. a3 {[%emt 0:00:03]} Be7 {[%emt 0:00:32]} 7. Be2 {[%emt 0:00:07] The position is equal.} O-O {[%emt 0:01:01]} 8. Be3 {[%emt 0:00:05]} d6 {[%emt 0:01:57]} 9. Qd3 {[%emt 0:02:05]} a6 {[%emt 0:01:34]} 10. f4 {[%emt 0:00:15]} e5 {[%emt 0:00:12]} 11. Nxc6 {[%emt 0:00:18]} bxc6 {[%emt 0:00:01]} 12. fxe5 {[%emt 0:00:08]} dxe5 {[%emt 0:00:05]} 13. Qxd8 {[%emt 0:00:03]} Rxd8 {[%emt 0:00:03]} 14. Bd3 {[%emt 0:00:04]} Be6 {[%emt 0:00:59]} 15. Na4 {[%emt 0:03:15]} Nd7 {[%emt 0:01:25]} 16. b3 {[%emt 0:11:06]} g6 {[%emt 0:06:19]} 17. O-O {[%emt 0:02:44]} a5 {[%emt 0:08:58]} 18. Rf3 {[%emt 0:26:30]} Bg4 {[%emt 0:06:29]} 19. Rf2 {[%emt 0:01:19]} Be6 {[%emt 0:00:18]} 20. Rf3 {[%emt 0:01:10]} Bg4 {[%emt 0:00:20]} 21. Rf2 {[%emt 0:00:03]} Be6 {[%emt 0:00:07] A rather calm draw.   Weighted Error Value: White=0.04 (flawless) /Black=0.04 (flawless) .  Inaccurate:     	---       	Black=1      OK:         	White=7     	Black=6} 1/2-1/2

[Event "Swiss National League-A 2024"]
[Site "Luzern"]
[Date "2024.10.13"]
[Round "9.18"]
[White "Kraemer, Martin"]
[Black "Georgiadis, Nico"]
[Result "1-0"]
[ECO "D35"]
[WhiteElo "2571"]
[BlackElo "2518"]
[Annotator "RC"]
[PlyCount "97"]
[EventDate "2023.10.03"]
[EventType "team-tourn"]
[EventCountry "SUI"]
[SourceTitle "playchess.com"]
[Source "ChessBase"]
[SourceQuality "1"]
[TimeControl "40/8400+30:20/3000+30:900+30"]

1. d4 {[%emt 0:40:03]} d5 {[%emt 0:40:18]} 2. c4 {[%emt 0:00:08]} e6 {[%emt 0:00:06]} 3. Nc3 {[%emt 0:00:17]} Nf6 {[%emt 0:00:18]} 4. cxd5 {[%emt 0:00:16]} exd5 {[%emt 0:00:05]} 5. Bg5 {[%emt 0:00:18]} Bb4 {[%emt 0:00:07]} 6. e3 {[%emt 0:05:05]} h6 {[%emt 0:00:40]} 7. Bh4 {[%emt 0:06:25]} g5 {[%emt 0:00:26]} 8. Bg3 {[%emt 0:00:03]} Ne4 {[%emt 0:00:08]} 9. a3 {[%emt 0:00:20]} Bxc3+ {[%emt 0:06:51]} 10. bxc3 {[%emt 0:00:01]} h5 {[%emt 0:05:13]} 11. f3 {[%emt 0:07:54]} Nxg3 {[%emt 0:00:07]} 12. hxg3 {[%emt 0:00:02]} Qd6 {[%emt 0:05:38]} 13. g4 {[%emt 0:15:21]} h4 {[%emt 0:04:36]} 14. Bd3 {[%emt 0:00:04]} Qe7 {[%emt 0:17:29]} 15. Kd2 {[%emt 0:14:01]} c5 {[%emt 0:16:23]} 16. g3 {[%emt 0:03:35]} Nc6 {[%emt 0:01:21]} 17. gxh4 {[%emt 0:00:14]} gxh4 {[%emt 0:01:31]} 18. Bb5 {[%emt 0:19:23]} Bd7 {[%emt 0:00:54]} 19. Bxc6 {[%emt 0:00:23]} Bxc6 {[%emt 0:01:54]} 20. Qb1 {[%emt 0:00:06]} cxd4 {[%emt 0:08:48]} 21. cxd4 {[%emt 0:00:47]} O-O-O {[%emt 0:00:17]} 22. Nh3 {[%emt 0:08:02]} Kb8 {[%emt 0:03:00]} 23. Qb4 {[%emt 0:00:51]} Qc7 {[%emt 0:06:17]} 24. Nf4 {[%emt 0:00:32]} Rd6 {[%emt 0:05:09]} 25. Rac1 {[%emt 0:02:12]} Qd7 {[%emt 0:06:51]} 26. Nd3 {[%emt 0:02:18]} Qd8 {[%emt 0:06:47]} 27. Ne5 {[%emt 0:03:41]} Be8 {[%emt 0:00:18]} 28. Rc5 {[%emt 0:06:18]} Rb6 {[%emt 0:02:55]} 29. Qc3 {[%emt 0:00:05]} a6 {[%emt 0:06:27]} 30. Rc1 {[%emt 0:02:14]} Ka7 {[%emt 0:00:04]} 31. Rc8 {[%emt 0:01:17]} Qd6 {[%emt 0:00:04]} 32. Qc5 {[%emt 0:00:40]} Qxc5 {[%emt 0:01:32]} 33. dxc5 {[%emt 0:01:38]} Rb2+ {[%emt 0:02:15]} 34. Kc3 {[%emt 0:01:43]} Re2 {[%emt 0:00:04]} 35. Nxf7 {[%emt 0:04:24]} Rh7 {[%emt 0:00:34]} 36. Nd6 {[%emt 0:03:48]} Bd7 {[%emt 0:01:49]} 37. Rc7 {[%emt 0:00:15]} Bf5 {[%emt 0:00:52]} 38. Rxh7 {[%emt 0:00:33]} Bxh7 {[%emt 0:00:04]} 39. Kd4 {[%emt 0:01:13]} h3 {[%emt 0:00:12]} 40. Rh1 {[%emt 0:01:07]} h2 {[%emt 0:00:06]} 41. Kxd5 {[%emt 0:52:21]} Rxe3 {[%emt 0:51:12]} 42. Rxh2 {[%emt 0:00:00]} Bg8+ {[%emt 0:00:00]} 43. Kd4 {[%emt 0:00:00]} Rxf3 {[%emt 0:00:00]} 44. Rh8 {[%emt 0:00:00]} Be6 {[%emt 0:00:00]} 45. Rh7 {[%emt 0:00:00]} Bxg4 {[%emt 0:00:00]} 46. Rxb7+ {[%emt 0:00:00]} Ka8 {[%emt 0:00:00]} 47. c6 {[%emt 0:00:00]} Rf6 {[%emt 0:00:00]} 48. Kc5 {[%emt 0:00:00]} a5 {[%emt 0:00:00]} 49. Rg7 {[%emt 0:00:00]} 1-0